{"text_format":"1","workbook":"xlsx","n_sheets":5,"sheets":["申込シート","参加確認 (学校用)","参加可名簿","参加断り名簿","集計"],"not_rendered":{"charts":0,"images":0,"macros":1,"external_links":0,"defined_names":7,"comments":0,"pivot_tables":0},"unopened":[],"bounds":{"document_bytes":16777216,"sheet_cells":100000,"rows_first":2000,"rows_last":500,"rows_between":2000,"halvings":0,"cell_chars":16384,"cell_head_chars":4096},"cells_cut":0,"cells_raw":0,"read":"whole","date_system":"1900"}

{"sheet":"申込シート","index":0,"n_rows":73,"n_cols":42,"rows_kept":73,"cut":false,"hidden":false,"merged":[[2,9,2,19],[1,0,1,22],[38,1,38,21],[4,14,4,15],[30,1,30,2],[31,1,31,2],[32,1,32,2],[33,1,33,2],[30,3,30,8],[31,3,31,8],[32,3,32,8],[33,3,33,8],[15,3,17,8],[31,17,31,18],[32,17,32,18],[33,17,33,18],[30,17,30,19],[27,12,27,13],[25,14,25,16],[22,17,22,18],[23,12,23,13],[23,17,23,18],[24,17,24,18],[25,17,25,18],[26,17,26,18],[24,12,24,13],[25,12,25,13],[26,12,26,13],[21,17,21,18],[22,14,22,16],[25,9,25,11],[22,5,22,6],[23,5,23,6],[24,5,24,6],[23,7,23,8],[23,9,23,11],[22,9,22,11],[22,12,22,13],[21,7,21,8],[21,5,21,6],[6,14,6,15],[8,14,8,15],[10,14,10,15],[21,9,21,11],[21,12,21,13],[21,14,21,16],[12,8,12,9],[12,14,12,15],[36,1,36,19],[34,17,34,18],[37,1,37,21],[22,7,22,8],[21,19,21,20],[22,19,22,20],[26,5,26,6],[27,5,27,6],[26,7,26,8],[27,7,27,8],[24,9,24,11],[24,7,24,8],[25,5,25,6],[25,7,25,8],[26,9,26,11],[27,9,27,11],[0,1,0,2],[25,19,25,20],[27,14,27,16],[23,14,23,16],[27,19,27,20],[24,14,24,16],[23,19,23,20],[24,19,24,20],[26,19,26,20],[26,14,26,16],[27,17,27,18],[8,16,8,19],[12,16,12,19],[10,16,10,19],[6,16,6,17],[8,8,8,9]]}
[null,"令和５年度",null,null,null,null,null,null,null,null,null,null,null,null,null,null,null,null,null,null,null,null,null,null,null,null,null,null,null,null,null,"2014-01-01","本日",null,null,null,"０",null,"北","北区","西賀茂中学校","493-7001"]
["鳴滝総合支援学校　中２対象オープンキャンパス参加申込シート",null,null,null,null,null,null,null,null,null,null,null,null,null,null,null,null,null,null,null,null,null,null,null,null,null,null,"リスト",12,"1",null,"１月１９日(金)",null,"２年","男","育成","１回目","あり","上京",null,"旭丘中学校","492-1330"]
[null,null,null,null,null,null,null,null,null,"（京都市立以外の学校専用）",null,null,null,null,null,null,null,null,null,null,null,null,null,null,null,null,null,null,1,"2",null,"１月２６日(金)",null,null,"女","普通","２回目","なし","左京",null,"衣笠中学校","461-2222"]
[null,"（あて先） 京都市立鳴滝総合支援学校　校長",null,null,null,null,null,null,null,null,null,null,null,null,null,null,null,null,null,null,null,null,null,null,null,null,null,null,2,"3",null,"１月２９日(月)",null,null,null,"総合支援","３回目",null,"中京",null,"京都教育大学附属京都小中学校","431-7133"]
[null,null,null,null,null,null,null,null,null,null,null,null,null,null,"令和５年",null,null,"月",null,"日",null,null,null,null,null,null,null,null,null,"4",null,"２月　５日(月)",null,"令和５年",null,null,null,null,"東山","上京区","烏丸中学校","431-0168"]
[null,null,null,null,null,null,null,null,null,null,null,null,null,null,null,null,null,null,null,null,null,null,null,null,null,null,null,null,null,"5",null,null,null,"令和６年",null,null,null,null,"山科",null,"上京中学校","431-8151"]
[null,null,null,null,null,null,null,null,null,null,null,null,null,null,null,null,null,null,null,null,null,null,null,null,null,null,null,null,null,"6",null,null,null,"令和７年",null,null,null,null,"下京",null,"嘉楽中学校","431-0312"]
[null,null,null,null,null,null,null,null,null,null,null,null,null,null,null,null,null,null,null,null,null,null,null,null,null,null,null,null,"10","7",null,null,null,"令和８年",null,null,null,null,"南",null,"二条中学校","821-1196"]
[null,null,null,null,null,null,null,null,null,null,null,null,null,null,"学校名",null,null,null,null,null,null,null,null,null,null,null,null,null,"11","8",null,null,null,"令和９年",null,null,null,null,"右京",null,"北総合支援学校","431-6636"]
[null,null,null,null,null,null,null,null,null,null,null,null,null,null,null,null,null,null,null,null,null,null,null,null,null,null,null,null,"12","9",null,"　　　　　　　　　　　　　",null,null,null,null,null,null,"西京","左京区","岡崎中学校","771-4191"]
[null,null,null,null,null,null,null,null,null,null,null,null,null,null,"電話番号",null,null,null,null,null,null,null,null,null,null,null,null,null,"1","10",null,null,null,"令和５年度",null,null,null,null,"伏見",null,"高野中学校","781-8134"]
[null,null,null,null,null,null,null,null,null,null,null,null,null,null,null,null,null,null,null,null,null,null,null,null,null,null,null,null,"2","11",null,null,null,"令和６年度",null,null,null,null,null,null,"下鴨中学校","781-9181"]
[null,null,null,null,null,null,null,null,null,null,null,null,null,null,"記入者　",null,null,null,null,null,null,null,null,null,null,null,null,null,null,"12",null,null,null,"令和７年度",null,null,null,null,null,null,"近衛中学校","771-0007"]
[null,null,null,null,null,null,null,null,null,null,null,null,null,null,null,null,null,null,null,null,null,null,null,null,null,null,null,"父",null,"13",null,null,null,"令和８年度",null,null,null,null,null,null,"修学院中学校","781-3000"]
[null,"１　希望日",null,null,null,null,null,null,null,null,null,null,null,null,null,null,null,null,null,null,null,null,null,null,null,null,null,"母",null,"14",null,null,null,"令和９年度",null,null,null,null,null,null,"洛北中学校","721-7445"]
[null,null,null,null,null,null,null,null,null,null,null,null,null,null,null,null,null,null,null,null,null,null,null,null,null,null,null,"祖父",null,"15",null,null,null,null,null,null,null,null,null,null,"大原小中学校","744-2004"]
[null,null,null,null,null,null,null,null,null,null,null,null,null,null,null,null,null,null,null,null,null,null,null,null,null,null,null,"祖母",null,"16",null,null,null,null,null,null,null,null,null,null,"花背小中学校","746-0131"]
[null,null,null,null,null,null,null,null,null,null,null,null,null,null,null,null,null,null,null,null,null,null,null,null,null,null,null,"叔父",null,"17",null,null,null,null,null,null,null,null,null,"中京区","北野中学校","463-7101"]
[null,null,null,null,null,null,null,null,null,null,null,null,null,null,null,null,null,null,null,null,null,null,null,null,null,null,null,"叔母",null,"18",null,null,null,null,null,null,null,null,null,null,"朱雀中学校","841-0205"]
[null,"２　参加者",null,null,null,null,null,null,null,null,null,null,null,null,null,null,null,null,null,null,null,null,null,null,null,null,null,"施設関係",null,"19",null,null,null,null,null,null,null,null,null,null,"京都御池中学校","221-0414"]
[null,"①　中学２年生及び保護者、家族",null,null,null,null,null,null,null,null,null,null,null,null,null,null,null,null,null,null,null,null,null,null,null,null,null,"その他",null,"20",null,null,null,null,null,null,null,null,null,null,"中京中学校","801-3266"]
[null,"学年等","参加生徒名","ふりがな","男・女","在籍\n学級",null,"今年度の参加回数",null,"参加保護者名",null,null,"生徒との関係",null,"参加保護者名",null,null,"生徒との関係",null,"個別相談\n希望の　有無",null,"希望日",null,null,null,null,null,null,null,"21",null,null,null,null,null,null,null,null,null,null,"松原中学校","841-0650"]
[null,"２年",null,null,null,null,null,null,null,null,null,null,null,null,null,null,null,null,null,null,null,{"$f":"申込シート!D16:I16","v":"00:00:00"},0,0,0,0,0,null,null,"22",null,null,null,null,null,null,null,null,null,null,"西京高等学校附属中学校","841-0010"]
[null,"２年",null,null,null,null,null,null,null,null,null,null,null,null,null,null,null,null,null,null,null,{"$f":"申込シート!D16:I16","v":"00:00:00"},0,0,0,0,0,null,null,"23",null,null,null,null,null,null,null,null,null,"東山区","開睛小中学校","533-8811"]
[null,"２年",null,null,null,null,null,null,null,null,null,null,null,null,null,null,null,null,null,null,null,{"$f":"申込シート!D16:I16","v":"00:00:00"},0,0,0,0,0,null,null,"24",null,null,null,null,null,null,null,null,null,"山科区","山科中学校","594-1151"]
[null,"２年",null,null,null,null,null,null,null,null,null,null,null,null,null,null,null,null,null,null,null,{"$f":"申込シート!D16:I16","v":"00:00:00"},0,0,0,0,0,null,null,"25",null,null,null,null,null,null,null,null,null,null,"大宅中学校","573-3067"]
[null,"２年",null,null,null,null,null,null,null,null,null,null,null,null,null,null,null,null,null,null,null,{"$f":"申込シート!D16:I16","v":"00:00:00"},0,0,0,0,0,null,null,"26",null,null,null,null,null,null,null,null,null,null,"音羽中学校","581-9115"]
[null,"２年",null,null,null,null,null,null,null,null,null,null,null,null,null,null,null,null,null,null,null,{"$f":"申込シート!D16:I16","v":"00:00:00"},0,0,0,0,0,null,null,"27",null,null,null,null,null,null,null,null,null,null,"東総合支援学校","594-6501"]
[null,null,null,null,null,null,null,null,null,null,null,null,null,null,null,null,null,null,null,null,null,null,null,null,null,null,null,null,null,"28",null,null,null,null,null,null,null,null,null,null,"七条中学校","313-0972"]
[null,"②　中学校、総合支援学校（中学部）の教職員",null,null,null,null,null,null,null,null,null,null,null,null,null,null,null,null,null,null,null,null,null,null,null,null,null,null,null,"29",null,null,null,null,null,null,null,null,null,null,"洛友中学校","821-2196"]
[null,"教職員の氏名",null,"生徒・保護者との関係 ／校務分掌",null,null,null,null,null,null,null,null,null,null,null,null,null,"参加人数",null,null,null,null,null,null,null,null,null,null,null,"30",null,null,null,null,null,null,null,null,null,"南区","八条中学校","681-5264"]
[null,null,null,null,null,null,null,null,null,null,null,null,null,null,null,null,null,"生　徒",null,{"$f":"COUNTA(C23,C24,C25,C26,C27,C28)","v":0},"名",null,null,null,null,null,null,null,null,"31",null,null,null,null,null,null,null,null,null,null,"九条中学校","681-2211"]
[null,null,null,null,null,null,null,null,null,null,null,null,null,null,null,null,null,"保護者",null,{"$f":"COUNTA(J23,J24,J25,J26,J27,J28,O23,O24,O25,O26,O27,O28)","v":0},"名",null,null,null,null,null,null,null,null,null,null,null,null,null,null,null,null,null,null,null,"洛南中学校","691-0018"]
[null,null,null,null,null,null,null,null,null,null,null,null,null,null,null,null,null,"教職員",null,{"$f":"COUNTA(B32:B33,B34)","v":0},"名",null,null,null,null,null,null,null,null,null,null,null,null,null,null,null,null,null,null,null,"久世中学校","933-3223"]
[null,null,null,null,null,null,null,null,null,null,null,null,null,null,null,null,null,"合 計",null,{"$f":"SUM(T32:T34)","v":0},"名",null,null,null,null,null,null,null,null,null,null,null,null,null,null,null,null,null,null,null,"凌風小中学校","693-8222"]
[]
["〇","欄が不足する場合はファイルをコピーして使用してください",null,null,null,null,null,null,null,null,null,null,null,null,null,null,null,null,null,null,null,null,null,null,null,null,null,null,null,null,null,null,null,null,null,null,null,null,null,"右京区","蜂ヶ岡中学校","861-2168"]
["〇","学校からの鳴滝総合支援学校への申込締切日および時刻は、各実施日２週間前の同じ曜日の午後５時です\n参加申込シートは管理職の先生から、電子メールで鳴滝総合 副教頭 早﨑純一まで 送信していただきます様お願いいたします （添付されるファイルには、○○の所に貴校の学校名を必ず付けてください）\n　narutaki-y@edu.city.kyoto.jp\n※セキュリティ強化により外部からＥｘｃｅｌデータが受付できませんので、お手数ですが必要事項を入力後、ＰＤＦに変換し、メールに添付していただきますようお願いします\n",null,null,null,null,null,null,null,null,null,null,null,null,null,null,null,null,null,null,null,null,null,null,null,null,null,null,null,null,null,null,null,null,null,null,null,null,null,null,"太秦中学校","872-0037"]
["〇","参加確認書を電子メールにて送付します（期限内でも参加者数が多い場合は、ご希望に添えないこともあります）",null,null,null,null,null,null,null,null,null,null,null,null,null,null,null,null,null,null,null,null,null,null,null,null,null,null,null,null,null,null,null,null,null,null,null,null,null,null,"嵯峨中学校","871-0533"]
[null,null,null,null,null,null,null,null,null,null,null,null,null,null,null,null,null,null,null,null,null,null,null,null,null,null,null,null,null,null,null,null,null,null,null,null,null,null,null,null,"梅津中学校","882-0910"]
[null,null,null,null,null,null,null,null,null,null,null,null,null,null,null,null,null,null,null,null,null,null,null,null,null,null,null,null,null,null,null,null,null,null,null,null,null,null,null,null,"西院中学校","312-0365"]
[null,null,null,null,null,null,null,null,null,null,null,null,null,null,null,null,null,null,null,null,null,null,null,null,null,null,null,null,null,null,null,null,null,null,null,null,null,null,null,null,"高雄中学校","872-1286"]
[null,null,null,null,null,null,null,null,null,null,null,null,null,null,null,null,null,null,null,null,null,null,null,null,null,null,null,null,null,null,null,null,null,null,null,null,null,null,null,null,"双ヶ丘中学校","463-8165"]
[null,null,null,null,null,null,null,null,null,null,null,null,null,null,null,null,null,null,null,null,null,null,null,null,null,null,null,null,null,null,null,null,null,null,null,null,null,null,null,null,"京都京北小中学校","852-1133"]
[null,null,null,null,null,null,null,null,null,null,null,null,null,null,null,null,null,null,null,null,null,null,null,null,null,null,null,null,null,null,null,null,null,null,null,null,null,null,null,null,"宕陰小中学校","0771-44-0310"]
[null,null,null,null,null,null,null,null,null,null,null,null,null,null,null,null,null,null,null,null,null,null,null,null,null,null,null,null,null,null,null,null,null,null,null,null,null,null,null,null,"鳴滝総合支援学校","461-3221"]
[null,null,null,null,null,null,null,null,null,null,null,null,null,null,null,null,null,null,null,null,null,null,null,null,null,null,null,null,null,null,null,null,null,null,null,null,null,null,null,"西京区","桂中学校","392-7200"]
[null,null,null,null,null,null,null,null,null,null,null,null,null,null,null,null,null,null,null,null,null,null,null,null,null,null,null,null,null,null,null,null,null,null,null,null,null,null,null,null,"松尾中学校","391-9622"]
[null,null,null,null,null,null,null,null,null,null,null,null,null,null,null,null,null,null,null,null,null,null,null,null,null,null,null,null,null,null,null,null,null,null,null,null,null,null,null,null,"桂川中学校","392-9229"]
[null,null,null,null,null,null,null,null,null,null,null,null,null,null,null,null,null,null,null,null,null,null,null,null,null,null,null,null,null,null,null,null,null,null,null,null,null,null,null,null,"樫原中学校","392-6630"]
[null,null,null,null,null,null,null,null,null,null,null,null,null,null,null,null,null,null,null,null,null,null,null,null,null,null,null,null,null,null,null,null,null,null,null,null,null,null,null,null,"大枝中学校","333-1112"]
[null,null,null,null,null,null,null,null,null,null,null,null,null,null,null,null,null,null,null,null,null,null,null,null,null,null,null,null,null,null,null,null,null,null,null,null,null,null,null,null,"洛西中学校","331-6131"]
[null,null,null,null,null,null,null,null,null,null,null,null,null,null,null,null,null,null,null,null,null,null,null,null,null,null,null,null,null,null,null,null,null,null,null,null,null,null,null,null,"西陵中学校","332-0671"]
[null,null,null,null,null,null,null,null,null,null,null,null,null,null,null,null,null,null,null,null,null,null,null,null,null,null,null,null,null,null,null,null,null,null,null,null,null,null,null,null,"大原野中学校","333-3207"]
[null,null,null,null,null,null,null,null,null,null,null,null,null,null,null,null,null,null,null,null,null,null,null,null,null,null,null,null,null,null,null,null,null,null,null,null,null,null,null,null,"西総合支援学校","332-4275"]
[null,null,null,null,null,null,null,null,null,null,null,null,null,null,null,null,null,null,null,null,null,null,null,null,null,null,null,null,null,null,null,null,null,null,null,null,null,null,null,"伏見区","深草中学校","641-6522"]
[null,null,null,null,null,null,null,null,null,null,null,null,null,null,null,null,null,null,null,null,null,null,null,null,null,null,null,null,null,null,null,null,null,null,null,null,null,null,null,null,"藤森中学校","641-5227"]
[null,null,null,null,null,null,null,null,null,null,null,null,null,null,null,null,null,null,null,null,null,null,null,null,null,null,null,null,null,null,null,null,null,null,null,null,null,null,null,null,"桃山中学校","611-0268"]
[null,null,null,null,null,null,null,null,null,null,null,null,null,null,null,null,null,null,null,null,null,null,null,null,null,null,null,null,null,null,null,null,null,null,null,null,null,null,null,null,"伏見中学校","611-5161"]
[null,null,null,null,null,null,null,null,null,null,null,null,null,null,null,null,null,null,null,null,null,null,null,null,null,null,null,null,null,null,null,null,null,null,null,null,null,null,null,null,"神川中学校","934-1505"]
[null,null,null,null,null,null,null,null,null,null,null,null,null,null,null,null,null,null,null,null,null,null,null,null,null,null,null,null,null,null,null,null,null,null,null,null,null,null,null,null,"醍醐中学校","571-0065"]
[null,null,null,null,null,null,null,null,null,null,null,null,null,null,null,null,null,null,null,null,null,null,null,null,null,null,null,null,null,null,null,null,null,null,null,null,null,null,null,null,"春日丘中学校","571-4969"]
[null,null,null,null,null,null,null,null,null,null,null,null,null,null,null,null,null,null,null,null,null,null,null,null,null,null,null,null,null,null,null,null,null,null,null,null,null,null,null,null,"小栗栖中学校","572-3135"]
[null,null,null,null,null,null,null,null,null,null,null,null,null,null,null,null,null,null,null,null,null,null,null,null,null,null,null,null,null,null,null,null,null,null,null,null,null,null,null,null,"栗陵中学校","571-7631"]
[null,null,null,null,null,null,null,null,null,null,null,null,null,null,null,null,null,null,null,null,null,null,null,null,null,null,null,null,null,null,null,null,null,null,null,null,null,null,null,null,"桃陵中学校","611-3241"]
[null,null,null,null,null,null,null,null,null,null,null,null,null,null,null,null,null,null,null,null,null,null,null,null,null,null,null,null,null,null,null,null,null,null,null,null,null,null,null,null,"向島東中学校","601-7932"]
[null,null,null,null,null,null,null,null,null,null,null,null,null,null,null,null,null,null,null,null,null,null,null,null,null,null,null,null,null,null,null,null,null,null,null,null,null,null,null,null,"洛水中学校","602-3261"]
[null,null,null,null,null,null,null,null,null,null,null,null,null,null,null,null,null,null,null,null,null,null,null,null,null,null,null,null,null,null,null,null,null,null,null,null,null,null,null,null,"大淀中学校","631-7211"]
[null,null,null,null,null,null,null,null,null,null,null,null,null,null,null,null,null,null,null,null,null,null,null,null,null,null,null,null,null,null,null,null,null,null,null,null,null,null,null,null,"向島秀蓮小中学校","611-3346"]
[null,null,null,null,null,null,null,null,null,null,null,null,null,null,null,null,null,null,null,null,null,null,null,null,null,null,null,null,null,null,null,null,null,null,null,null,null,null,null,null,"呉竹総合支援学校","601-9104"]
[null,null,null,null,null,null,null,null,null,null,null,null,null,null,null,null,null,null,null,null,null,null,null,null,null,null,null,null,null,null,null,null,null,null,null,null,null,null,null,null,"桃陽総合支援学校","641-2634"]
[]
[null,null,null,null,null,null,null,null,null,null,null,null,null,null,null,null,null,null,null,null,null,null,null,null,null,null,null,null,null,null,null,null,null,null,null,null,null,null,null,null,"京都教育大学附属特別支援学校","641-3531"]

{"sheet":"参加確認 (学校用)","index":1,"n_rows":34,"n_cols":32,"rows_kept":34,"cut":false,"hidden":true,"merged":[[33,1,33,21],[4,16,4,17],[8,1,8,21],[18,12,18,13],[19,12,19,13],[20,12,20,13],[21,12,21,13],[22,12,22,13],[23,12,23,13],[18,14,18,16],[18,17,18,18],[19,14,19,16],[22,14,22,16],[23,14,23,16],[19,17,19,18],[20,17,20,18],[32,1,32,23],[27,1,27,2],[27,3,27,8],[27,9,27,10],[28,9,28,10],[29,9,29,10],[28,3,28,8],[29,3,29,8],[28,1,28,2],[29,1,29,2],[28,17,28,18],[29,17,29,18],[30,17,30,18],[27,17,27,18],[31,1,31,2],[23,22,23,23],[21,22,21,23],[18,22,18,23],[19,22,19,23],[23,5,23,6],[23,7,23,8],[21,19,21,20],[18,19,18,20],[20,5,20,6],[20,7,20,8],[20,9,20,11],[19,5,19,6],[19,7,19,8],[20,14,20,16],[22,22,22,23],[21,5,21,6],[21,7,21,8],[21,9,21,11],[22,5,22,6],[22,7,22,8],[22,9,22,11],[22,19,22,20],[21,14,21,16],[21,17,21,18],[22,17,22,18],[20,22,20,23],[20,19,20,20],[23,9,23,11],[25,1,25,11],[23,19,23,20],[26,3,26,8],[26,9,26,10],[23,17,23,18],[26,1,26,2],[26,17,26,19],[10,1,10,2],[19,19,19,20],[17,5,17,6],[17,7,17,8],[17,9,17,11],[17,12,17,13],[17,14,17,16],[17,17,17,18],[17,19,17,20],[18,5,18,6],[18,7,18,8],[18,9,18,11],[19,9,19,11],[11,3,13,9],[16,1,16,22],[15,1,15,2],[0,1,0,2],[3,1,3,2],[3,3,3,4],[3,5,3,7],[1,0,1,22],[3,9,3,10]]}
[null,{"$f":"申込シート!B1","v":"令和５年度"}]
["鳴滝総合支援学校　中２対象オープンキャンパス参加確認書　（学校記入用）",null,null,null,null,null,null,null,null,null,null,null,null,null,null,null,null,null,null,null,null,null,null,null,null,null,null,null,null,null,"1"]
[null,null,null,null,null,null,null,null,null,null,null,null,null,null,null,null,null,null,null,null,null,null,null,null,null,null,null,null,null,null,"2",12]
[null,"（あて先） ",null,{"$f":"申込シート!Q9","v":0},null,"学校長様",null,null,null,null,null,null,null,null,null,null,null,null,null,null,null,null,null,null,null,null,null,null,null,null,"3",1]
[null,null,null,null,null,null,null,null,null,null,null,null,null,null,null,null,{"$f":"申込シート!O5","v":"令和５年"},null,null,"月",null,"日",null,null,null,null,null,null,null,null,"4",2]
[null,null,null,null,null,null,null,null,null,null,null,null,null,null,null,null,null,null,null,null,null,null,null,null,null,null,null,null,null,null,"5"]
[null,null,null,null,null,null,null,null,null,null,null,null,null,null,null,null,"京都市立鳴滝総合支援学校",null,null,null,null,null,null,null,null,null,null,null,null,null,"6"]
[null,null,null,null,null,null,null,null,null,null,null,null,null,null,null,null,null,null,null,null,null,null,null,null,null,null,null,null,null,null,"7"]
[null,"　京都市立鳴滝総合支援学校におけるオープンキャンパスへの参加について、以下のように決定しましたのでお知らせいたします。\n参加日、参加の可否及び内容をご確認いただきますようお願いいたします。",null,null,null,null,null,null,null,null,null,null,null,null,null,null,null,null,null,null,null,null,null,null,null,null,null,null,null,null,"8"]
[null,null,null,null,null,null,null,null,null,null,null,null,null,null,null,null,null,null,null,null,null,null,null,null,null,null,null,null,null,null,"9"]
[null,"１　希望日",null,null,null,null,null,null,null,null,null,null,null,null,null,null,null,null,null,null,null,null,null,null,null,null,null,null,null,null,"10"]
[null,null,null,{"$f":"申込シート!D16","v":"00:00:00"},null,null,null,null,null,null,null,null,null,null,null,null,null,null,null,null,null,null,null,null,null,null,null,null,null,null,"11"]
[null,null,null,null,null,null,null,null,null,null,null,null,null,null,null,null,null,null,null,null,null,null,null,null,null,null,null,"母",null,null,"12"]
[null,null,null,null,null,null,null,null,null,null,null,null,null,null,null,null,null,null,null,null,null,null,null,null,null,null,null,"父",null,null,"13"]
[null,null,null,null,null,null,null,null,null,null,null,null,null,null,null,null,null,null,null,null,null,null,null,null,null,null,null,"祖母",null,null,"14"]
[null,"２　参加者",null,null,null,null,null,null,null,null,null,null,null,null,null,null,null,null,null,null,null,null,null,null,null,null,null,"祖父",null,null,"15"]
[null,"①　高等部卒業後企業就職を希望する中学３年生又は過年度卒業生及び保護者、家族",null,null,null,null,null,null,null,null,null,null,null,null,null,null,null,null,null,null,null,null,null,null,null,null,null,"職員関係",null,"参加可","16"]
[null,"学年等","参加生徒名","ふりがな","男・女","在籍\n学級",null,"今年度の参加回数",null,"参加保護者名",null,null,"生徒との関係",null,"参加保護者名",null,null,"生徒との関係",null,"個別相談\n希望の　有無",null,"参加可否",null,null,null,null,null,null,null,"参加不可","17"]
[null,{"$f":"申込シート!B23","v":"２年"},{"$f":"申込シート!C23","v":0},{"$f":"申込シート!D23","v":0},{"$f":"申込シート!E23","v":0},{"$f":"申込シート!F23","v":0},{"$f":"申込シート!G23","v":0},{"$f":"申込シート!H23","v":0},{"$f":"申込シート!I23","v":0},{"$f":"申込シート!J23","v":0},{"$f":"申込シート!K23","v":0},{"$f":"申込シート!L23","v":0},{"$f":"申込シート!M23","v":0},null,{"$f":"申込シート!O23","v":0},null,null,{"$f":"申込シート!R23","v":0},null,{"$f":"申込シート!T23","v":0},null,null,null,null,null,null,null,null,null,null,"18"]
[null,{"$f":"申込シート!B24","v":"２年"},{"$f":"申込シート!C24","v":0},{"$f":"申込シート!D24","v":0},{"$f":"申込シート!E24","v":0},{"$f":"申込シート!F24","v":0},{"$f":"申込シート!G24","v":0},{"$f":"申込シート!H24","v":0},{"$f":"申込シート!I24","v":0},{"$f":"申込シート!J24","v":0},{"$f":"申込シート!K24","v":0},{"$f":"申込シート!L24","v":0},{"$f":"申込シート!M24","v":0},null,{"$f":"申込シート!O24","v":0},null,null,{"$f":"申込シート!R24","v":0},null,{"$f":"申込シート!T24","v":0},null,null,null,null,null,null,null,null,null,null,"19"]
[null,{"$f":"申込シート!B25","v":"２年"},{"$f":"申込シート!C25","v":0},{"$f":"申込シート!D25","v":0},{"$f":"申込シート!E25","v":0},{"$f":"申込シート!F25","v":0},{"$f":"申込シート!G25","v":0},{"$f":"申込シート!H25","v":0},{"$f":"申込シート!I25","v":0},{"$f":"申込シート!J25","v":0},{"$f":"申込シート!K25","v":0},{"$f":"申込シート!L25","v":0},{"$f":"申込シート!M25","v":0},null,{"$f":"申込シート!O25","v":0},null,null,{"$f":"申込シート!R25","v":0},null,{"$f":"申込シート!T25","v":0},null,null,null,null,null,null,null,null,null,null,"20"]
[null,{"$f":"申込シート!B26","v":"２年"},{"$f":"申込シート!C26","v":0},{"$f":"申込シート!D26","v":0},{"$f":"申込シート!E26","v":0},{"$f":"申込シート!F26","v":0},{"$f":"申込シート!G26","v":0},{"$f":"申込シート!H26","v":0},{"$f":"申込シート!I26","v":0},{"$f":"申込シート!J26","v":0},{"$f":"申込シート!K26","v":0},{"$f":"申込シート!L26","v":0},{"$f":"申込シート!M26","v":0},null,{"$f":"申込シート!O26","v":0},null,null,{"$f":"申込シート!R26","v":0},null,{"$f":"申込シート!T26","v":0},null,null,null,null,null,null,null,{"$f":"COUNTIFS(J22,\"*\",Y22,\"参加可\")+COUNTIFS(O22,\"*\",Y22,\"参加可\")","v":0},null,null,"21"]
[null,{"$f":"申込シート!B27","v":"２年"},{"$f":"申込シート!C27","v":0},{"$f":"申込シート!D27","v":0},{"$f":"申込シート!E27","v":0},{"$f":"申込シート!F27","v":0},{"$f":"申込シート!G27","v":0},{"$f":"申込シート!H27","v":0},{"$f":"申込シート!I27","v":0},{"$f":"申込シート!J27","v":0},{"$f":"申込シート!K27","v":0},{"$f":"申込シート!L27","v":0},{"$f":"申込シート!M27","v":0},null,{"$f":"申込シート!O27","v":0},null,null,{"$f":"申込シート!R27","v":0},null,{"$f":"申込シート!T27","v":0},null,null,null,null,null,null,null,{"$f":"COUNTIFS(J23,\"*\",Y23,\"参加可\")+COUNTIFS(O23,\"*\",Y23,\"参加可\")","v":0},null,null,"22"]
[null,{"$f":"申込シート!B28","v":"２年"},{"$f":"申込シート!C28","v":0},{"$f":"申込シート!D28","v":0},{"$f":"申込シート!E28","v":0},{"$f":"申込シート!F28","v":0},{"$f":"申込シート!G28","v":0},{"$f":"申込シート!H28","v":0},{"$f":"申込シート!I28","v":0},{"$f":"申込シート!J28","v":0},{"$f":"申込シート!K28","v":0},{"$f":"申込シート!L28","v":0},{"$f":"申込シート!M28","v":0},null,{"$f":"申込シート!O28","v":0},null,null,{"$f":"申込シート!R28","v":0},null,{"$f":"申込シート!T28","v":0},null,null,null,null,null,null,null,{"$f":"COUNTIFS(J24,\"*\",Y24,\"参加可\")+COUNTIFS(O24,\"*\",Y24,\"参加可\")","v":0},null,null,"23"]
[null,null,null,null,null,null,null,null,null,null,null,null,null,null,null,null,null,null,null,null,null,null,null,null,null,null,null,null,null,null,"24"]
[null,"②　中学校、総合支援学校（中学部）の教職員",null,null,null,null,null,null,null,null,null,null,null,null,null,null,null,null,null,null,null,null,null,null,null,null,null,null,null,null,"25"]
[null,"教職員の氏名",null,"参加生徒・保護者との関係 ／校務分掌",null,null,null,null,null,"参加可否",null,null,null,null,null,null,null,"参加人数",null,null,null,null,null,null,null,null,null,null,null,null,"26"]
[null,{"$f":"申込シート!B32","v":0},null,{"$f":"申込シート!D32","v":0},null,null,null,null,null,null,null,null,null,null,null,null,null,"生　徒",null,{"$f":"申込シート!T32","v":0},"名",null,null,{"$f":"COUNTIF(Y19:Y24,\"参加可\")","v":0},null,null,null,null,null,null,"27"]
[null,{"$f":"申込シート!B33","v":0},null,{"$f":"申込シート!D33","v":0},null,null,null,null,null,null,null,null,null,null,null,null,null,"保護者",null,{"$f":"申込シート!T33","v":0},"名",null,null,{"$f":"SUM(AB19:AB24)","v":0},null,null,null,null,null,null,"28"]
[null,{"$f":"申込シート!B34","v":0},null,{"$f":"申込シート!D34","v":0},null,null,null,null,null,null,null,null,null,null,null,null,null,"教職員",null,{"$f":"申込シート!T34","v":0},"名",null,null,{"$f":"COUNTIF(P28:Q30,\"参加可\")","v":0},null,null,null,null,null,null,"29"]
[null,null,null,null,null,null,null,null,null,null,null,null,null,null,null,null,null,"合　計",null,{"$f":"申込シート!T35","v":0},"名",null,null,{"$f":"SUM(X28:X30)","v":0},null,null,null,null,null,null,"30"]
[null,"③　日　程",null,null,null,null,null,null,null,null,null,null,null,null,null,null,null,null,null,null,null,null,null,null,null,null,null,null,null,null,"31"]
[null,"　　９：４０～　　　　　　　受付開始\n　１０：００～　　　　　　　①ガイダンス　　　　　　 　\n　１０：２５～　　　　　　　②見学・体験（専門教科の見学・体験）\n　　　　　　　　　　　　　　※個別の相談（要事前申込）\n　１１：４０～　　　　　　　③学校説明（映像で学校紹介）\n　１１：５５～　　　　　    ③キャリアアドバイス（学習の振返り）\n　１２：１０　　　　　　　　終了予定　　　　　　　　"]
[null,"※　本校は、二足制になっております。必ず上靴をご持参ください。\n※　遅刻・不参加の場合は、 中学校・中学部から鳴滝総合（４６１-３２２１）へ連絡してください。\n※　体調不良の場合は、参加の自粛をお願いいたします。\n※　発熱等の症状が見られた場合、参加を見合わせていただくこともあります。"]

{"sheet":"参加可名簿","index":2,"n_rows":34,"n_cols":23,"rows_kept":34,"cut":false,"hidden":true,"merged":[[33,1,33,21],[27,17,27,18],[28,17,28,18],[29,17,29,18],[30,17,30,18],[31,1,31,2],[28,1,28,2],[28,3,28,8],[28,9,28,10],[29,1,29,2],[29,3,29,8],[29,9,29,10],[27,1,27,2],[27,3,27,8],[27,9,27,10],[32,1,32,22],[3,1,3,2],[10,1,10,2],[15,1,15,2],[16,1,16,22],[18,7,18,8],[8,1,8,21],[3,3,3,4],[3,5,3,7],[11,3,13,9],[18,12,18,13],[18,9,18,11],[18,5,18,6],[19,19,19,20],[19,9,19,11],[17,17,17,18],[17,19,17,20],[18,19,18,20],[18,17,18,18],[18,14,18,16],[17,5,17,6],[17,7,17,8],[17,9,17,11],[17,12,17,13],[17,14,17,16],[23,19,23,20],[21,5,21,6],[21,7,21,8],[23,5,23,6],[23,7,23,8],[23,9,23,11],[22,17,22,18],[23,17,23,18],[20,12,20,13],[19,12,19,13],[19,14,19,16],[19,17,19,18],[22,19,22,20],[21,12,21,13],[20,19,20,20],[26,3,26,8],[26,9,26,10],[19,7,19,8],[20,5,20,6],[20,7,20,8],[20,9,20,11],[25,1,25,11],[21,9,21,11],[19,5,19,6],[0,1,0,2],[1,3,1,19],[26,17,26,19],[21,14,21,16],[21,17,21,18],[21,19,21,20],[22,5,22,6],[22,7,22,8],[22,9,22,11],[22,12,22,13],[22,14,22,16],[23,12,23,13],[23,14,23,16],[20,14,20,16],[20,17,20,18],[26,1,26,2]]}
[null,{"$f":"申込シート!B1","v":"令和５年度"}]
[null,null,null,"鳴滝総合支援学校オープンキャンパス参加確認書"]
[]
[null,"（あて先）",null,{"$f":"申込シート!Q9","v":0},null,"学校長様"]
[null,null,null,null,null,null,null,null,null,null,null,null,null,null,null,null,{"$f":"申込シート!O5","v":"令和５年"},null,{"$f":"'参加確認 (学校用)'!S5","v":0},"月",{"$f":"'参加確認 (学校用)'!U5","v":0},"日",{"$f":"'参加確認 (学校用)'!W5","v":0}]
[]
[null,null,null,null,null,null,null,null,null,null,null,null,null,null,null,null,"京都市立鳴滝総合支援学校"]
[]
[null,"　京都市立鳴滝総合支援学校におけるオープンキャンパスへの参加について、以下のように決定しましたのでお知らせいたします。参加日、参加者及び内容をご確認いただきますようお願いいたします。"]
[]
[null,"１　希望日"]
[null,null,null,{"$f":"申込シート!D16","v":"00:00:00"}]
[]
[]
[]
[null,"２　参加者"]
[null,"①　高等部卒業後企業就職を希望する中学３年生又は過年度卒業生及び保護者、家族"]
[null,"学年等","参加生徒名","ふりがな","男・女","在籍\n学級",null,"今年度の参加回数",null,"参加保護者名",null,null,"生徒との関係",null,"参加保護者名",null,null,"生徒との関係",null,"個別相談\n希望の　有無",null,"参加可否"]
[null,{"$f":"IF('参加確認 (学校用)'!V19:V19=\"参加可\",'参加確認 (学校用)'!B19:B19,\"\")","v":""},{"$f":"IF('参加確認 (学校用)'!V19:V19=\"参加可\",'参加確認 (学校用)'!C19:C19,\"\")","v":""},{"$f":"IF('参加確認 (学校用)'!V19:V19=\"参加可\",'参加確認 (学校用)'!D19:D19,\"\")","v":""},{"$f":"IF('参加確認 (学校用)'!V19:V19=\"参加可\",'参加確認 (学校用)'!E19:E19,\"\")","v":""},{"$f":"IF('参加確認 (学校用)'!V19:V19=\"参加可\",'参加確認 (学校用)'!F19:G19,\"\")","v":""},null,{"$f":"IF('参加確認 (学校用)'!V19:V19=\"参加可\",'参加確認 (学校用)'!H19:I19,\"\")","v":""},null,{"$f":"IF('参加確認 (学校用)'!V19:V19=\"参加可\",'参加確認 (学校用)'!J19:K19,\"\")","v":""},null,null,{"$f":"IF('参加確認 (学校用)'!V19:V19=\"参加可\",'参加確認 (学校用)'!M19:N19,\"\")","v":""},null,{"$f":"IF('参加確認 (学校用)'!V19:V19=\"参加可\",'参加確認 (学校用)'!O19:P19,\"\")","v":""},null,null,{"$f":"IF('参加確認 (学校用)'!V19:V19=\"参加可\",'参加確認 (学校用)'!R19:S19,\"\")","v":""},null,{"$f":"IF('参加確認 (学校用)'!V19:V19=\"参加可\",'参加確認 (学校用)'!T19:U19,\"\")","v":""},null,{"$f":"IF('参加確認 (学校用)'!V19:V19=\"参加可\",'参加確認 (学校用)'!V19:V19,\"\")","v":""}]
[null,{"$f":"IF('参加確認 (学校用)'!V20:V20=\"参加可\",'参加確認 (学校用)'!B20:B20,\"\")","v":""},{"$f":"IF('参加確認 (学校用)'!V20:V20=\"参加可\",'参加確認 (学校用)'!C20:C20,\"\")","v":""},{"$f":"IF('参加確認 (学校用)'!V20:V20=\"参加可\",'参加確認 (学校用)'!D20:D20,\"\")","v":""},{"$f":"IF('参加確認 (学校用)'!V20:V20=\"参加可\",'参加確認 (学校用)'!E20:E20,\"\")","v":""},{"$f":"IF('参加確認 (学校用)'!V20:V20=\"参加可\",'参加確認 (学校用)'!F20:G20,\"\")","v":""},null,{"$f":"IF('参加確認 (学校用)'!V20:V20=\"参加可\",'参加確認 (学校用)'!H20:I20,\"\")","v":""},null,{"$f":"IF('参加確認 (学校用)'!V20:V20=\"参加可\",'参加確認 (学校用)'!J20:K20,\"\")","v":""},null,null,{"$f":"IF('参加確認 (学校用)'!V20:V20=\"参加可\",'参加確認 (学校用)'!M20:N20,\"\")","v":""},null,{"$f":"IF('参加確認 (学校用)'!V20:V20=\"参加可\",'参加確認 (学校用)'!O20:P20,\"\")","v":""},null,null,{"$f":"IF('参加確認 (学校用)'!V20:V20=\"参加可\",'参加確認 (学校用)'!R20:S20,\"\")","v":""},null,{"$f":"IF('参加確認 (学校用)'!V20:V20=\"参加可\",'参加確認 (学校用)'!T20:U20,\"\")","v":""},null,{"$f":"IF('参加確認 (学校用)'!V20:V20=\"参加可\",'参加確認 (学校用)'!V20:V20,\"\")","v":""}]
[null,{"$f":"IF('参加確認 (学校用)'!V21:V21=\"参加可\",'参加確認 (学校用)'!B21:B21,\"\")","v":""},{"$f":"IF('参加確認 (学校用)'!V21:V21=\"参加可\",'参加確認 (学校用)'!C21:C21,\"\")","v":""},{"$f":"IF('参加確認 (学校用)'!V21:V21=\"参加可\",'参加確認 (学校用)'!D21:D21,\"\")","v":""},{"$f":"IF('参加確認 (学校用)'!V21:V21=\"参加可\",'参加確認 (学校用)'!E21:E21,\"\")","v":""},{"$f":"IF('参加確認 (学校用)'!V21:V21=\"参加可\",'参加確認 (学校用)'!F21:G21,\"\")","v":""},null,{"$f":"IF('参加確認 (学校用)'!V21:V21=\"参加可\",'参加確認 (学校用)'!H21:I21,\"\")","v":""},null,{"$f":"IF('参加確認 (学校用)'!V21:V21=\"参加可\",'参加確認 (学校用)'!J21:K21,\"\")","v":""},null,null,{"$f":"IF('参加確認 (学校用)'!V21:V21=\"参加可\",'参加確認 (学校用)'!M21:N21,\"\")","v":""},null,{"$f":"IF('参加確認 (学校用)'!V21:V21=\"参加可\",'参加確認 (学校用)'!O21:P21,\"\")","v":""},null,null,{"$f":"IF('参加確認 (学校用)'!V21:V21=\"参加可\",'参加確認 (学校用)'!R21:S21,\"\")","v":""},null,{"$f":"IF('参加確認 (学校用)'!V21:V21=\"参加可\",'参加確認 (学校用)'!T21:U21,\"\")","v":""},null,{"$f":"IF('参加確認 (学校用)'!V21:V21=\"参加可\",'参加確認 (学校用)'!V21:V21,\"\")","v":""}]
[null,{"$f":"IF('参加確認 (学校用)'!V22:V22=\"参加可\",'参加確認 (学校用)'!B22:B22,\"\")","v":""},{"$f":"IF('参加確認 (学校用)'!V22:V22=\"参加可\",'参加確認 (学校用)'!C22:C22,\"\")","v":""},{"$f":"IF('参加確認 (学校用)'!V22:V22=\"参加可\",'参加確認 (学校用)'!D22:D22,\"\")","v":""},{"$f":"IF('参加確認 (学校用)'!V22:V22=\"参加可\",'参加確認 (学校用)'!E22:E22,\"\")","v":""},{"$f":"IF('参加確認 (学校用)'!V22:V22=\"参加可\",'参加確認 (学校用)'!F22:G22,\"\")","v":""},null,{"$f":"IF('参加確認 (学校用)'!V22:V22=\"参加可\",'参加確認 (学校用)'!H22:I22,\"\")","v":""},null,{"$f":"IF('参加確認 (学校用)'!V22:V22=\"参加可\",'参加確認 (学校用)'!J22:K22,\"\")","v":""},null,null,{"$f":"IF('参加確認 (学校用)'!V22:V22=\"参加可\",'参加確認 (学校用)'!M22:N22,\"\")","v":""},null,{"$f":"IF('参加確認 (学校用)'!V22:V22=\"参加可\",'参加確認 (学校用)'!O22:P22,\"\")","v":""},null,null,{"$f":"IF('参加確認 (学校用)'!V22:V22=\"参加可\",'参加確認 (学校用)'!R22:S22,\"\")","v":""},null,{"$f":"IF('参加確認 (学校用)'!V22:V22=\"参加可\",'参加確認 (学校用)'!T22:U22,\"\")","v":""},null,{"$f":"IF('参加確認 (学校用)'!V22:V22=\"参加可\",'参加確認 (学校用)'!V22:V22,\"\")","v":""}]
[null,{"$f":"IF('参加確認 (学校用)'!V23:V23=\"参加可\",'参加確認 (学校用)'!B23:B23,\"\")","v":""},{"$f":"IF('参加確認 (学校用)'!V23:V23=\"参加可\",'参加確認 (学校用)'!C23:C23,\"\")","v":""},{"$f":"IF('参加確認 (学校用)'!V23:V23=\"参加可\",'参加確認 (学校用)'!D23:D23,\"\")","v":""},{"$f":"IF('参加確認 (学校用)'!V23:V23=\"参加可\",'参加確認 (学校用)'!E23:E23,\"\")","v":""},{"$f":"IF('参加確認 (学校用)'!V23:V23=\"参加可\",'参加確認 (学校用)'!F23:G23,\"\")","v":""},null,{"$f":"IF('参加確認 (学校用)'!V23:V23=\"参加可\",'参加確認 (学校用)'!H23:I23,\"\")","v":""},null,{"$f":"IF('参加確認 (学校用)'!V23:V23=\"参加可\",'参加確認 (学校用)'!J23:K23,\"\")","v":""},null,null,{"$f":"IF('参加確認 (学校用)'!V23:V23=\"参加可\",'参加確認 (学校用)'!M23:N23,\"\")","v":""},null,{"$f":"IF('参加確認 (学校用)'!V23:V23=\"参加可\",'参加確認 (学校用)'!O23:P23,\"\")","v":""},null,null,{"$f":"IF('参加確認 (学校用)'!V23:V23=\"参加可\",'参加確認 (学校用)'!R23:S23,\"\")","v":""},null,{"$f":"IF('参加確認 (学校用)'!V23:V23=\"参加可\",'参加確認 (学校用)'!T23:U23,\"\")","v":""},null,{"$f":"IF('参加確認 (学校用)'!V23:V23=\"参加可\",'参加確認 (学校用)'!V23:V23,\"\")","v":""}]
[null,{"$f":"IF('参加確認 (学校用)'!V24:V24=\"参加可\",'参加確認 (学校用)'!B24:B24,\"\")","v":""},{"$f":"IF('参加確認 (学校用)'!V24:V24=\"参加可\",'参加確認 (学校用)'!C24:C24,\"\")","v":""},{"$f":"IF('参加確認 (学校用)'!V24:V24=\"参加可\",'参加確認 (学校用)'!D24:D24,\"\")","v":""},{"$f":"IF('参加確認 (学校用)'!V24:V24=\"参加可\",'参加確認 (学校用)'!E24:E24,\"\")","v":""},{"$f":"IF('参加確認 (学校用)'!V24:V24=\"参加可\",'参加確認 (学校用)'!F24:G24,\"\")","v":""},null,{"$f":"IF('参加確認 (学校用)'!V24:V24=\"参加可\",'参加確認 (学校用)'!H24:I24,\"\")","v":""},null,{"$f":"IF('参加確認 (学校用)'!V24:V24=\"参加可\",'参加確認 (学校用)'!J24:K24,\"\")","v":""},null,null,{"$f":"IF('参加確認 (学校用)'!V24:V24=\"参加可\",'参加確認 (学校用)'!M24:N24,\"\")","v":""},null,{"$f":"IF('参加確認 (学校用)'!V24:V24=\"参加可\",'参加確認 (学校用)'!O24:P24,\"\")","v":""},null,null,{"$f":"IF('参加確認 (学校用)'!V24:V24=\"参加可\",'参加確認 (学校用)'!R24:S24,\"\")","v":""},null,{"$f":"IF('参加確認 (学校用)'!V24:V24=\"参加可\",'参加確認 (学校用)'!T24:U24,\"\")","v":""},null,{"$f":"IF('参加確認 (学校用)'!V24:V24=\"参加可\",'参加確認 (学校用)'!V24:V24,\"\")","v":""}]
[]
[null,"②　中学校、総合支援学校（中学部）の教職員"]
[null,"教職員の氏名",null,"参加生徒・保護者との関係 ／校務分掌",null,null,null,null,null,"参加可否",null,null,null,null,null,null,null,"参加人数"]
[null,{"$f":"IF('参加確認 (学校用)'!J28:J28=\"参加可\",'参加確認 (学校用)'!B28:B28,\"\")","v":""},null,{"$f":"IF('参加確認 (学校用)'!J28=\"参加可\",'参加確認 (学校用)'!D28,\"\")","v":""},null,null,null,null,null,{"$f":"IF('参加確認 (学校用)'!J28=\"参加可\",'参加確認 (学校用)'!J28,\"\")","v":""},null,null,null,null,null,{"$f":"IF('参加確認 (学校用)'!P28=\"参加可\",'参加確認 (学校用)'!P28,\"\")","v":""},null,"生　徒",null,{"$f":"'参加確認 (学校用)'!T28","v":0},"名"]
[null,{"$f":"IF('参加確認 (学校用)'!P29=\"参加可\",'参加確認 (学校用)'!B29,\"\")","v":""},null,{"$f":"IF('参加確認 (学校用)'!P29=\"参加可\",'参加確認 (学校用)'!D29,\"\")","v":""},null,null,null,null,null,null,null,null,null,null,null,{"$f":"IF('参加確認 (学校用)'!P29=\"参加可\",'参加確認 (学校用)'!P29,\"\")","v":""},null,"保護者",null,{"$f":"'参加確認 (学校用)'!T29","v":0},"名"]
[null,{"$f":"IF('参加確認 (学校用)'!P30=\"参加可\",'参加確認 (学校用)'!B30,\"\")","v":""},null,{"$f":"IF('参加確認 (学校用)'!P30=\"参加可\",'参加確認 (学校用)'!D30,\"\")","v":""},null,null,null,null,null,null,null,null,null,null,null,{"$f":"IF('参加確認 (学校用)'!P30=\"参加可\",'参加確認 (学校用)'!P30,\"\")","v":""},null,"教職員",null,{"$f":"'参加確認 (学校用)'!T30","v":0},"名"]
[null,null,null,null,null,null,null,null,null,null,null,null,null,null,null,null,null,"合　計",null,{"$f":"'参加確認 (学校用)'!T31","v":0},"名"]
[null,"③　日　程"]
[null,"　　９：４０～　　　　　　　受付開始\n　１０：００～　　　　　　　①ガイダンス　　　　　　 　\n　１０：２５～　　　　　　　②見学・体験（専門教科の見学・体験）\n　　　　　　　　　　　　　　※個別の相談（要事前申込）\n　１１：４０～　　　　　　　③学校説明（映像で学校紹介）\n　１１：５５～　　　　　    ③キャリアアドバイス（学習の振返り）\n　１２：１０　　　　　　　　終了予定　　　　　　　　"]
[null,"※　本校は、二足制になっております。必ず上靴をご持参ください。\n※　遅刻・不参加の場合は、 中学校・中学部から鳴滝総合（４６１-３２２１）へ連絡してください。\n※　体調不良の場合は、参加の自粛をお願いいたします。\n※　発熱等の症状が見られた場合、参加を見合わせていただくこともあります。"]

{"sheet":"参加断り名簿","index":3,"n_rows":34,"n_cols":25,"rows_kept":34,"cut":false,"hidden":true,"merged":[[17,12,17,13],[19,5,19,6],[19,7,19,8],[11,3,13,9],[17,5,17,6],[17,7,17,8],[17,9,17,11],[33,1,33,23],[27,17,27,18],[28,20,28,22],[29,20,29,22],[30,20,30,22],[32,1,32,23],[27,20,27,22],[28,1,28,2],[28,3,28,8],[28,9,28,10],[29,1,29,2],[29,3,29,8],[29,9,29,10],[27,1,27,2],[27,3,27,8],[27,9,27,10],[10,1,10,2],[15,1,15,2],[16,1,16,22],[25,1,25,11],[17,17,17,18],[17,19,17,20],[18,5,18,6],[18,7,18,8],[18,9,18,11],[18,12,18,13],[18,14,18,16],[18,17,18,18],[18,19,18,20],[19,17,19,18],[19,19,19,20],[17,14,17,16],[20,5,20,6],[20,7,20,8],[20,9,20,11],[20,12,20,13],[20,14,20,16],[20,17,20,18],[20,19,20,20],[19,9,19,11],[19,12,19,13],[19,14,19,16],[21,17,21,18],[21,19,21,20],[22,5,22,6],[22,7,22,8],[22,9,22,11],[22,12,22,13],[22,14,22,16],[22,17,22,18],[22,19,22,20],[21,5,21,6],[21,7,21,8],[21,9,21,11],[21,12,21,13],[21,14,21,16],[23,12,23,13],[23,14,23,16],[23,17,23,18],[23,19,23,20],[26,1,26,2],[26,3,26,8],[26,9,26,10],[26,19,26,21],[23,5,23,6],[23,7,23,8],[23,9,23,11],[1,3,1,19],[0,1,0,2],[8,1,8,21],[3,3,3,4],[3,5,3,7],[3,1,3,2]]}
[null,{"$f":"申込シート!B1","v":"令和５年度"}]
[null,null,null,"鳴滝総合支援学校オープンキャンパスについて"]
[]
[null,"（あて先）",null,{"$f":"申込シート!Q9","v":0},null,"学校長様"]
[null,null,null,null,null,null,null,null,null,null,null,null,null,null,null,null,{"$f":"申込シート!O5","v":"令和５年"},null,{"$f":"'参加確認 (学校用)'!S5","v":0},"月",{"$f":"'参加確認 (学校用)'!U5","v":0},"日"]
[]
[null,null,null,null,null,null,null,null,null,null,null,null,null,null,null,null,"京都市立鳴滝総合支援学校"]
[]
[null,"　京都市立鳴滝総合支援学校におけるオープンキャンパスへの参加について、以下のように決定いたしましたのでお知らせいたします。\n　大変申し訳ありませんが、参加人数を制限させていただいているため、下記日程について参加いただくことができません。ご理解いただきますようお願いいたします。"]
[]
[null,"１　希望日"]
[null,null,null,{"$f":"申込シート!D16","v":"00:00:00"}]
[]
[]
[]
[null,"２　申込者"]
[null,"①　高等部卒業後企業就職を希望する中学３年生又は過年度卒業生及び保護者、家族"]
[null,"学年等","参加生徒名","ふりがな","男・女","在籍\n学級",null,"今年度の参加回数",null,"参加保護者名",null,null,"生徒との関係",null,"参加保護者名",null,null,"生徒との関係",null,"個別相談\n希望の　有無",null,"参加可否"]
[null,{"$f":"IF('参加確認 (学校用)'!V19:V19=\"参加不可\",'参加確認 (学校用)'!B19:B19,\"\")","v":""},{"$f":"IF('参加確認 (学校用)'!V19:V19=\"参加不可\",'参加確認 (学校用)'!C19:C19,\"\")","v":""},{"$f":"IF('参加確認 (学校用)'!V19:V19=\"参加不可\",'参加確認 (学校用)'!D19:D19,\"\")","v":""},{"$f":"IF('参加確認 (学校用)'!V19:V19=\"参加不可\",'参加確認 (学校用)'!E19:E19,\"\")","v":""},{"$f":"IF('参加確認 (学校用)'!V19:V19=\"参加不可\",'参加確認 (学校用)'!F19:G19,\"\")","v":""},null,{"$f":"IF('参加確認 (学校用)'!V19:V19=\"参加不可\",'参加確認 (学校用)'!H19:I19,\"\")","v":""},null,{"$f":"IF('参加確認 (学校用)'!V19:V19=\"参加不可\",'参加確認 (学校用)'!J19:K19,\"\")","v":""},null,null,{"$f":"IF('参加確認 (学校用)'!V19:V19=\"参加不可\",'参加確認 (学校用)'!M19:N19,\"\")","v":""},null,{"$f":"IF('参加確認 (学校用)'!V19:V19=\"参加不可\",'参加確認 (学校用)'!O19:P19,\"\")","v":""},null,null,{"$f":"IF('参加確認 (学校用)'!V19:V19=\"参加不可\",'参加確認 (学校用)'!R19:S19,\"\")","v":""},null,{"$f":"IF('参加確認 (学校用)'!V19:V19=\"参加不可\",'参加確認 (学校用)'!T19:U19,\"\")","v":""},null,{"$f":"IF('参加確認 (学校用)'!V19:V19=\"参加不可\",'参加確認 (学校用)'!V19:V19,\"\")","v":""}]
[null,{"$f":"IF('参加確認 (学校用)'!V20:V20=\"参加不可\",'参加確認 (学校用)'!B20:B20,\"\")","v":""},{"$f":"IF('参加確認 (学校用)'!V20:V20=\"参加不可\",'参加確認 (学校用)'!C20:C20,\"\")","v":""},{"$f":"IF('参加確認 (学校用)'!V20:V20=\"参加不可\",'参加確認 (学校用)'!D20:D20,\"\")","v":""},{"$f":"IF('参加確認 (学校用)'!V20:V20=\"参加不可\",'参加確認 (学校用)'!E20:E20,\"\")","v":""},{"$f":"IF('参加確認 (学校用)'!V20:V20=\"参加不可\",'参加確認 (学校用)'!F20:G20,\"\")","v":""},null,{"$f":"IF('参加確認 (学校用)'!V20:V20=\"参加不可\",'参加確認 (学校用)'!H20:I20,\"\")","v":""},null,{"$f":"IF('参加確認 (学校用)'!V20:V20=\"参加不可\",'参加確認 (学校用)'!J20:K20,\"\")","v":""},null,null,{"$f":"IF('参加確認 (学校用)'!V20:V20=\"参加不可\",'参加確認 (学校用)'!M20:N20,\"\")","v":""},null,{"$f":"IF('参加確認 (学校用)'!V20:V20=\"参加不可\",'参加確認 (学校用)'!O20:P20,\"\")","v":""},null,null,{"$f":"IF('参加確認 (学校用)'!V20:V20=\"参加不可\",'参加確認 (学校用)'!R20:S20,\"\")","v":""},null,{"$f":"IF('参加確認 (学校用)'!V20:V20=\"参加不可\",'参加確認 (学校用)'!T20:U20,\"\")","v":""},null,{"$f":"IF('参加確認 (学校用)'!V20:V20=\"参加不可\",'参加確認 (学校用)'!V20:V20,\"\")","v":""}]
[null,{"$f":"IF('参加確認 (学校用)'!V21:V21=\"参加不可\",'参加確認 (学校用)'!B21:B21,\"\")","v":""},{"$f":"IF('参加確認 (学校用)'!V21:V21=\"参加不可\",'参加確認 (学校用)'!C21:C21,\"\")","v":""},{"$f":"IF('参加確認 (学校用)'!V21:V21=\"参加不可\",'参加確認 (学校用)'!D21:D21,\"\")","v":""},{"$f":"IF('参加確認 (学校用)'!V21:V21=\"参加不可\",'参加確認 (学校用)'!E21:E21,\"\")","v":""},{"$f":"IF('参加確認 (学校用)'!V21:V21=\"参加不可\",'参加確認 (学校用)'!F21:G21,\"\")","v":""},null,{"$f":"IF('参加確認 (学校用)'!V21:V21=\"参加不可\",'参加確認 (学校用)'!H21:I21,\"\")","v":""},null,{"$f":"IF('参加確認 (学校用)'!V21:V21=\"参加不可\",'参加確認 (学校用)'!J21:K21,\"\")","v":""},null,null,{"$f":"IF('参加確認 (学校用)'!V21:V21=\"参加不可\",'参加確認 (学校用)'!M21:N21,\"\")","v":""},null,{"$f":"IF('参加確認 (学校用)'!V21:V21=\"参加不可\",'参加確認 (学校用)'!O21:P21,\"\")","v":""},null,null,{"$f":"IF('参加確認 (学校用)'!V21:V21=\"参加不可\",'参加確認 (学校用)'!R21:S21,\"\")","v":""},null,{"$f":"IF('参加確認 (学校用)'!V21:V21=\"参加不可\",'参加確認 (学校用)'!T21:U21,\"\")","v":""},null,{"$f":"IF('参加確認 (学校用)'!V21:V21=\"参加不可\",'参加確認 (学校用)'!V21:V21,\"\")","v":""}]
[null,{"$f":"IF('参加確認 (学校用)'!V22:V22=\"参加不可\",'参加確認 (学校用)'!B22:B22,\"\")","v":""},{"$f":"IF('参加確認 (学校用)'!V22:V22=\"参加不可\",'参加確認 (学校用)'!C22:C22,\"\")","v":""},{"$f":"IF('参加確認 (学校用)'!V22:V22=\"参加不可\",'参加確認 (学校用)'!D22:D22,\"\")","v":""},{"$f":"IF('参加確認 (学校用)'!V22:V22=\"参加不可\",'参加確認 (学校用)'!E22:E22,\"\")","v":""},{"$f":"IF('参加確認 (学校用)'!V22:V22=\"参加不可\",'参加確認 (学校用)'!F22:G22,\"\")","v":""},null,{"$f":"IF('参加確認 (学校用)'!V22:V22=\"参加不可\",'参加確認 (学校用)'!H22:I22,\"\")","v":""},null,{"$f":"IF('参加確認 (学校用)'!V22:V22=\"参加不可\",'参加確認 (学校用)'!J22:K22,\"\")","v":""},null,null,{"$f":"IF('参加確認 (学校用)'!V22:V22=\"参加不可\",'参加確認 (学校用)'!M22:N22,\"\")","v":""},null,{"$f":"IF('参加確認 (学校用)'!V22:V22=\"参加不可\",'参加確認 (学校用)'!O22:P22,\"\")","v":""},null,null,{"$f":"IF('参加確認 (学校用)'!V22:V22=\"参加不可\",'参加確認 (学校用)'!R22:S22,\"\")","v":""},null,{"$f":"IF('参加確認 (学校用)'!V22:V22=\"参加不可\",'参加確認 (学校用)'!T22:U22,\"\")","v":""},null,{"$f":"IF('参加確認 (学校用)'!V22:V22=\"参加不可\",'参加確認 (学校用)'!V22:V22,\"\")","v":""}]
[null,{"$f":"IF('参加確認 (学校用)'!V23:V23=\"参加不可\",'参加確認 (学校用)'!B23:B23,\"\")","v":""},{"$f":"IF('参加確認 (学校用)'!V23:V23=\"参加不可\",'参加確認 (学校用)'!C23:C23,\"\")","v":""},{"$f":"IF('参加確認 (学校用)'!V23:V23=\"参加不可\",'参加確認 (学校用)'!D23:D23,\"\")","v":""},{"$f":"IF('参加確認 (学校用)'!V23:V23=\"参加不可\",'参加確認 (学校用)'!E23:E23,\"\")","v":""},{"$f":"IF('参加確認 (学校用)'!V23:V23=\"参加不可\",'参加確認 (学校用)'!F23:G23,\"\")","v":""},null,{"$f":"IF('参加確認 (学校用)'!V23:V23=\"参加不可\",'参加確認 (学校用)'!H23:I23,\"\")","v":""},null,{"$f":"IF('参加確認 (学校用)'!V23:V23=\"参加不可\",'参加確認 (学校用)'!J23:K23,\"\")","v":""},null,null,{"$f":"IF('参加確認 (学校用)'!V23:V23=\"参加不可\",'参加確認 (学校用)'!M23:N23,\"\")","v":""},null,{"$f":"IF('参加確認 (学校用)'!V23:V23=\"参加不可\",'参加確認 (学校用)'!O23:P23,\"\")","v":""},null,null,{"$f":"IF('参加確認 (学校用)'!V23:V23=\"参加不可\",'参加確認 (学校用)'!R23:S23,\"\")","v":""},null,{"$f":"IF('参加確認 (学校用)'!V23:V23=\"参加不可\",'参加確認 (学校用)'!T23:U23,\"\")","v":""},null,{"$f":"IF('参加確認 (学校用)'!V23:V23=\"参加不可\",'参加確認 (学校用)'!V23:V23,\"\")","v":""}]
[null,{"$f":"IF('参加確認 (学校用)'!V24:V24=\"参加不可\",'参加確認 (学校用)'!B24:B24,\"\")","v":""},{"$f":"IF('参加確認 (学校用)'!V24:V24=\"参加不可\",'参加確認 (学校用)'!C24:C24,\"\")","v":""},{"$f":"IF('参加確認 (学校用)'!V24:V24=\"参加不可\",'参加確認 (学校用)'!D24:D24,\"\")","v":""},{"$f":"IF('参加確認 (学校用)'!V24:V24=\"参加不可\",'参加確認 (学校用)'!E24:E24,\"\")","v":""},{"$f":"IF('参加確認 (学校用)'!V24:V24=\"参加不可\",'参加確認 (学校用)'!F24:G24,\"\")","v":""},null,{"$f":"IF('参加確認 (学校用)'!V24:V24=\"参加不可\",'参加確認 (学校用)'!H24:I24,\"\")","v":""},null,{"$f":"IF('参加確認 (学校用)'!V24:V24=\"参加不可\",'参加確認 (学校用)'!J24:K24,\"\")","v":""},null,null,{"$f":"IF('参加確認 (学校用)'!V24:V24=\"参加不可\",'参加確認 (学校用)'!M24:N24,\"\")","v":""},null,{"$f":"IF('参加確認 (学校用)'!V24:V24=\"参加不可\",'参加確認 (学校用)'!O24:P24,\"\")","v":""},null,null,{"$f":"IF('参加確認 (学校用)'!V24:V24=\"参加不可\",'参加確認 (学校用)'!R24:S24,\"\")","v":""},null,{"$f":"IF('参加確認 (学校用)'!V24:V24=\"参加不可\",'参加確認 (学校用)'!T24:U24,\"\")","v":""},null,{"$f":"IF('参加確認 (学校用)'!V24:V24=\"参加不可\",'参加確認 (学校用)'!V24:V24,\"\")","v":""}]
[]
[null,"②　中学校、総合支援学校（中学部）の教職員"]
[null,"教職員の氏名",null,"生徒・保護者との関係 ／校務分掌",null,null,null,null,null,"参加可否",null,null,null,null,null,null,null,null,null,"参加人数"]
[null,{"$f":"IF('参加確認 (学校用)'!J28:J28=\"参加不可\",'参加確認 (学校用)'!B28:B28,\"\")","v":""},null,{"$f":"IF('参加確認 (学校用)'!J28=\"参加不可\",'参加確認 (学校用)'!D28,\"\")","v":""},null,null,null,null,null,{"$f":"IF('参加確認 (学校用)'!J28=\"参加不可\",'参加確認 (学校用)'!J28,\"\")","v":""},null,null,null,null,null,{"$f":"IF('参加確認 (学校用)'!P28=\"参加不可\",'参加確認 (学校用)'!P28,\"\")","v":""},null,null,null,null,"生　徒"]
[null,{"$f":"IF('参加確認 (学校用)'!P29=\"参加不可\",'参加確認 (学校用)'!B29,\"\")","v":""},null,{"$f":"IF('参加確認 (学校用)'!P29=\"参加不可\",'参加確認 (学校用)'!D29,\"\")","v":""},null,null,null,null,null,null,null,null,null,null,null,{"$f":"IF('参加確認 (学校用)'!P29=\"参加不可\",'参加確認 (学校用)'!P29,\"\")","v":""},null,null,null,null,"保護者"]
[null,{"$f":"IF('参加確認 (学校用)'!P30=\"参加不可\",'参加確認 (学校用)'!B30,\"\")","v":""},null,{"$f":"IF('参加確認 (学校用)'!P30=\"参加不可\",'参加確認 (学校用)'!D30,\"\")","v":""},null,null,null,null,null,null,null,null,null,null,null,{"$f":"IF('参加確認 (学校用)'!P30=\"参加不可\",'参加確認 (学校用)'!P30,\"\")","v":""},null,null,null,null,"教職員"]
[null,null,null,null,null,null,null,null,null,null,null,null,null,null,null,null,null,null,null,null,"合　計",null,null,{"$f":"SUM(X28:X30)","v":0},"名"]
[null,"③　日　程"]
[null,"　　９：００～　９：２０　　受付開始\n　　９：２０～　９：５０　　①ガイダンス（初回必須）　　　　　　 　\n　１０：００～１２：００　　②見学・体験（専門教科の見学・体験）\n　１２：０５～１２：２５    ③キャリアアドバイス（学習の振返り）\n　　９：２０～１２：００　　④個別の相談（要事前申込）　　　　　　"]
[null,"※　本校は、二足制になっております。必ず上靴をご持参ください。\n※　遅刻・不参加の場合は、 中学校・中学部から鳴滝総合（４６１-３２２１）へ連絡してください。"]

{"sheet":"集計","index":4,"n_rows":16,"n_cols":19,"rows_kept":16,"cut":false,"hidden":true,"merged":[[1,1,1,5],[1,6,1,8]]}
[]
[null,"オープンキャンパス集計表（３年）",null,null,null,null,{"$f":"申込シート!D16","v":0}]
[]
[null,"学校名","学年","氏名","ふりがな","性別","在籍","参加回数","保護者１","関係","保護者２","関係","個別相談","教職員","関係","教員可否","参加可否","希望日","備考"]
[null,{"$f":"申込シート!Q9","v":0},{"$f":"'参加確認 (学校用)'!B19","v":"２年"},{"$f":"'参加確認 (学校用)'!C19","v":0},{"$f":"'参加確認 (学校用)'!D19","v":0},{"$f":"'参加確認 (学校用)'!E19","v":0},{"$f":"'参加確認 (学校用)'!F19","v":0},{"$f":"'参加確認 (学校用)'!H19","v":0},{"$f":"'参加確認 (学校用)'!J19","v":0},{"$f":"'参加確認 (学校用)'!M19","v":0},{"$f":"'参加確認 (学校用)'!O19","v":0},{"$f":"'参加確認 (学校用)'!R19","v":0},{"$f":"'参加確認 (学校用)'!T19","v":0},{"$f":"'参加確認 (学校用)'!B28","v":0},{"$f":"'参加確認 (学校用)'!D28","v":0},{"$f":"'参加確認 (学校用)'!J28","v":0},{"$f":"'参加確認 (学校用)'!V19","v":0},{"$f":"申込シート!D16","v":0}," "]
[null,{"$f":"申込シート!Q9","v":0},{"$f":"'参加確認 (学校用)'!B20","v":"２年"},{"$f":"'参加確認 (学校用)'!C20","v":0},{"$f":"'参加確認 (学校用)'!D20","v":0},{"$f":"'参加確認 (学校用)'!E20","v":0},{"$f":"'参加確認 (学校用)'!F20","v":0},{"$f":"'参加確認 (学校用)'!H20","v":0},{"$f":"'参加確認 (学校用)'!J20","v":0},{"$f":"'参加確認 (学校用)'!M20","v":0},{"$f":"'参加確認 (学校用)'!O20","v":0},{"$f":"'参加確認 (学校用)'!R20","v":0},{"$f":"'参加確認 (学校用)'!T20","v":0},{"$f":"'参加確認 (学校用)'!B29","v":0},{"$f":"'参加確認 (学校用)'!D29","v":0},{"$f":"'参加確認 (学校用)'!J29","v":0},{"$f":"'参加確認 (学校用)'!V20","v":0},{"$f":"申込シート!D16","v":0}," "]
[null,{"$f":"申込シート!Q9","v":0},{"$f":"'参加確認 (学校用)'!B21","v":"２年"},{"$f":"'参加確認 (学校用)'!C21","v":0},{"$f":"'参加確認 (学校用)'!D21","v":0},{"$f":"'参加確認 (学校用)'!E21","v":0},{"$f":"'参加確認 (学校用)'!F21","v":0},{"$f":"'参加確認 (学校用)'!H21","v":0},{"$f":"'参加確認 (学校用)'!J21","v":0},{"$f":"'参加確認 (学校用)'!M21","v":0},{"$f":"'参加確認 (学校用)'!O21","v":0},{"$f":"'参加確認 (学校用)'!R21","v":0},{"$f":"'参加確認 (学校用)'!T21","v":0},{"$f":"'参加確認 (学校用)'!B30","v":0},{"$f":"'参加確認 (学校用)'!D30","v":0},{"$f":"'参加確認 (学校用)'!J30","v":0},{"$f":"'参加確認 (学校用)'!V21","v":0},{"$f":"申込シート!D16","v":0}," "]
[null,{"$f":"申込シート!Q9","v":0},{"$f":"'参加確認 (学校用)'!B22","v":"２年"},{"$f":"'参加確認 (学校用)'!C22","v":0},{"$f":"'参加確認 (学校用)'!D22","v":0},{"$f":"'参加確認 (学校用)'!E22","v":0},{"$f":"'参加確認 (学校用)'!F22","v":0},{"$f":"'参加確認 (学校用)'!H22","v":0},{"$f":"'参加確認 (学校用)'!J22","v":0},{"$f":"'参加確認 (学校用)'!M22","v":0},{"$f":"'参加確認 (学校用)'!O22","v":0},{"$f":"'参加確認 (学校用)'!R22","v":0},{"$f":"'参加確認 (学校用)'!T22","v":0},{"$f":"'参加確認 (学校用)'!B31","v":0},{"$f":"'参加確認 (学校用)'!D31","v":0},{"$f":"'参加確認 (学校用)'!J31","v":0},{"$f":"'参加確認 (学校用)'!V22","v":0},{"$f":"申込シート!D16","v":0}," "]
[null,{"$f":"申込シート!Q9","v":0},{"$f":"'参加確認 (学校用)'!B23","v":"２年"},{"$f":"'参加確認 (学校用)'!C23","v":0},{"$f":"'参加確認 (学校用)'!D23","v":0},{"$f":"'参加確認 (学校用)'!E23","v":0},{"$f":"'参加確認 (学校用)'!F23","v":0},{"$f":"'参加確認 (学校用)'!H23","v":0},{"$f":"'参加確認 (学校用)'!J23","v":0},{"$f":"'参加確認 (学校用)'!M23","v":0},{"$f":"'参加確認 (学校用)'!O23","v":0},{"$f":"'参加確認 (学校用)'!R23","v":0},{"$f":"'参加確認 (学校用)'!T23","v":0},null,{"$f":"'参加確認 (学校用)'!D32","v":0},{"$f":"'参加確認 (学校用)'!J32","v":0},{"$f":"'参加確認 (学校用)'!V23","v":0},{"$f":"申込シート!D16","v":0}," "]
[null,{"$f":"申込シート!Q9","v":0},{"$f":"'参加確認 (学校用)'!B24","v":"２年"},{"$f":"'参加確認 (学校用)'!C24","v":0},{"$f":"'参加確認 (学校用)'!D24","v":0},{"$f":"'参加確認 (学校用)'!E24","v":0},{"$f":"'参加確認 (学校用)'!F24","v":0},{"$f":"'参加確認 (学校用)'!H24","v":0},{"$f":"'参加確認 (学校用)'!J24","v":0},{"$f":"'参加確認 (学校用)'!M24","v":0},{"$f":"'参加確認 (学校用)'!O24","v":0},{"$f":"'参加確認 (学校用)'!R24","v":0},{"$f":"'参加確認 (学校用)'!T24","v":0},null,{"$f":"'参加確認 (学校用)'!D33","v":0},{"$f":"'参加確認 (学校用)'!J33","v":0},{"$f":"'参加確認 (学校用)'!V24","v":0},{"$f":"申込シート!D16","v":0}," "]
[null,null,{"$f":"'参加確認 (学校用)'!B25","v":0},{"$f":"'参加確認 (学校用)'!C25","v":0},{"$f":"'参加確認 (学校用)'!D25","v":0},{"$f":"'参加確認 (学校用)'!E25","v":0},{"$f":"'参加確認 (学校用)'!F25","v":0},{"$f":"'参加確認 (学校用)'!H25","v":0},null,{"$f":"'参加確認 (学校用)'!M25","v":0},{"$f":"'参加確認 (学校用)'!O25","v":0},{"$f":"'参加確認 (学校用)'!R25","v":0},{"$f":"'参加確認 (学校用)'!T25","v":0},null,{"$f":"'参加確認 (学校用)'!D34","v":0},{"$f":"'参加確認 (学校用)'!J34","v":0},{"$f":"'参加確認 (学校用)'!V25","v":0},{"$f":"申込シート!D16","v":0}," "]
[null,null,null,{"$f":"'参加確認 (学校用)'!C26","v":0},{"$f":"'参加確認 (学校用)'!D26","v":0},{"$f":"'参加確認 (学校用)'!E26","v":0},{"$f":"'参加確認 (学校用)'!F26","v":0},{"$f":"'参加確認 (学校用)'!H26","v":0},null,{"$f":"'参加確認 (学校用)'!M26","v":0},{"$f":"'参加確認 (学校用)'!O26","v":0},{"$f":"'参加確認 (学校用)'!R26","v":0},{"$f":"'参加確認 (学校用)'!T26","v":0},null,{"$f":"'参加確認 (学校用)'!D35","v":0},{"$f":"'参加確認 (学校用)'!J35","v":0},{"$f":"'参加確認 (学校用)'!V26","v":0},{"$f":"申込シート!D16","v":0}," "]
[null,null,null,{"$f":"'参加確認 (学校用)'!C27","v":0},null,{"$f":"'参加確認 (学校用)'!E27","v":0},{"$f":"'参加確認 (学校用)'!F27","v":0},{"$f":"'参加確認 (学校用)'!H27","v":0},null,{"$f":"'参加確認 (学校用)'!M27","v":0},{"$f":"'参加確認 (学校用)'!O27","v":0},null,{"$f":"'参加確認 (学校用)'!T27","v":0},null,{"$f":"'参加確認 (学校用)'!D36","v":0},{"$f":"'参加確認 (学校用)'!J36","v":0},{"$f":"'参加確認 (学校用)'!V27","v":0},{"$f":"申込シート!D16","v":0}," "]
[null,null,null,{"$f":"'参加確認 (学校用)'!C28","v":0},null,{"$f":"'参加確認 (学校用)'!E28","v":0},{"$f":"'参加確認 (学校用)'!F28","v":0},{"$f":"'参加確認 (学校用)'!H28","v":0},null,{"$f":"'参加確認 (学校用)'!M28","v":0},{"$f":"'参加確認 (学校用)'!O28","v":0},null,null,null,{"$f":"'参加確認 (学校用)'!D37","v":0},{"$f":"'参加確認 (学校用)'!J37","v":0},{"$f":"'参加確認 (学校用)'!V28","v":0},{"$f":"申込シート!D16","v":0}," "]
[null,null,null,{"$f":"'参加確認 (学校用)'!C29","v":0},null,{"$f":"'参加確認 (学校用)'!E29","v":0},{"$f":"'参加確認 (学校用)'!F29","v":0},{"$f":"'参加確認 (学校用)'!H29","v":0},null,{"$f":"'参加確認 (学校用)'!M29","v":0},{"$f":"'参加確認 (学校用)'!O29","v":0},null,null,null,{"$f":"'参加確認 (学校用)'!D38","v":0},{"$f":"'参加確認 (学校用)'!J38","v":0},{"$f":"'参加確認 (学校用)'!V29","v":0},{"$f":"申込シート!D16","v":0}," "]
[null,null,null,{"$f":"'参加確認 (学校用)'!C30","v":0},null,{"$f":"'参加確認 (学校用)'!E30","v":0},{"$f":"'参加確認 (学校用)'!F30","v":0},{"$f":"'参加確認 (学校用)'!H30","v":0},null,{"$f":"'参加確認 (学校用)'!M30","v":0},{"$f":"'参加確認 (学校用)'!O30","v":0},null,null,null,{"$f":"'参加確認 (学校用)'!D39","v":0},{"$f":"'参加確認 (学校用)'!J39","v":0},{"$f":"'参加確認 (学校用)'!V30","v":0},{"$f":"申込シート!D16","v":0}," "]